[Event "Live Chess"]
[Site "Chess.com"]
[Date "2023.05.21"]
[Round "-"]
[White "whitedjohn"]
[Black "NAZRIZ1977"]
[Result "0-1"]
[WhiteElo "1649"]
[BlackElo "2065"]
[TimeControl "300"]
[EndTime "16:33:58 PDT"]
[Termination "NAZRIZ1977 won by checkmate"]

1. e4 {[%clk 0:04:56.2]} 1... c5 {[%clk 0:04:58.4]} 2. Nf3 {[%clk 0:04:52.1]}
2... d6 {[%clk 0:04:57.5]} 3. d4 {[%clk 0:04:49.4]} 3... cxd4 {[%clk 0:04:56.9]}
4. Nxd4 {[%clk 0:04:47.8]} 4... Nf6 {[%clk 0:04:56.4]} 5. Nc3 {[%clk 0:04:44.7]}
5... g6 {[%clk 0:04:55.9]} 6. Bc4 {[%clk 0:04:41.4]} 6... Bg7 {[%clk 0:04:55.3]}
7. Be3 {[%clk 0:04:40]} 7... O-O {[%clk 0:04:54.5]} 8. f3 {[%clk 0:04:39.1]}
8... Nc6 {[%clk 0:04:53.8]} 9. Qd2 {[%clk 0:04:38]} 9... Bd7 {[%clk 0:04:53.1]}
10. O-O-O {[%clk 0:04:35.4]} 10... Rc8 {[%clk 0:04:52.6]} 11. Bb3 {[%clk
0:04:31.8]} 11... Nxd4 {[%clk 0:04:49.3]} 12. Bxd4 {[%clk 0:04:28.9]} 12... b5
{[%clk 0:04:48.9]} 13. g4 {[%clk 0:04:23.3]} 13... a5 {[%clk 0:04:46.4]} 14. a3
{[%clk 0:04:14.2]} 14... b4 {[%clk 0:04:42.8]} 15. axb4 {[%clk 0:04:11.4]} 15...
axb4 {[%clk 0:04:41.6]} 16. Nd5 {[%clk 0:04:08.9]} 16... Nxd5 {[%clk 0:04:40]}
17. Bxg7 {[%clk 0:04:08.1]} 17... Kxg7 {[%clk 0:04:36.4]} 18. Qxd5 {[%clk
0:04:03.9]} 18... Kg8 {[%clk 0:04:27]} 19. Qg5 {[%clk 0:03:46.5]} 19... Rc5
{[%clk 0:04:18.8]} 20. Qe3 {[%clk 0:03:41.3]} 20... Qc7 {[%clk 0:04:04.2]} 21.
h4 {[%clk 0:03:37.6]} 21... Rc8 {[%clk 0:04:02.3]} 22. Rh2 {[%clk 0:03:31.2]}
22... Qa7 {[%clk 0:03:51.7]} 23. Kd2 {[%clk 0:03:26.3]} 23... Rxc2+ {[%clk
0:03:41.3]} 24. Bxc2 {[%clk 0:03:23]} 24... Rxc2+ {[%clk 0:03:39.9]} 25. Kd3
{[%clk 0:03:18.9]} 25... Bb5+ {[%clk 0:03:27.3]} 26. Kxc2 {[%clk 0:03:12.7]}
26... Qxe3 {[%clk 0:03:26]} 27. Rhd2 {[%clk 0:03:02.1]} 27... Ba4+ {[%clk
0:03:24.4]} 28. b3 {[%clk 0:02:59.4]} 28... Qxb3+ {[%clk 0:03:22.4]} 29. Kc1
{[%clk 0:02:57.6]} 29... Qc3+ {[%clk 0:03:19.3]} 30. Rc2 {[%clk 0:02:54.9]}
30... Qxc2# {[%clk 0:03:18.1]} 0-1

[Event "Live Chess"]
[Site "Chess.com"]
[Date "2023.05.21"]
[Round "-"]
[White "Jo1ts"]
[Black "GMHarry-youtube"]
[Result "0-1"]
[WhiteElo "791"]
[BlackElo "2012"]
[TimeControl "300"]
[EndTime "16:34:13 PDT"]
[Termination "GMHarry-youtube won by resignation"]

1. d4 {[%clk 0:04:35.5]} 1... Nf6 {[%clk 0:04:58.5]} 2. Bf4 {[%clk 0:04:10]}
2... d5 {[%clk 0:04:56]} 3. e3 {[%clk 0:04:06.1]} 3... c5 {[%clk 0:04:54.1]} 4.
Nf3 {[%clk 0:04:02.4]} 4... Nc6 {[%clk 0:04:50.7]} 5. c3 {[%clk 0:04:01.5]} 5...
Bf5 {[%clk 0:04:47.7]} 6. Bd3 {[%clk 0:04:00.4]} 6... Bxd3 {[%clk 0:04:45.1]} 7.
Qxd3 {[%clk 0:04:00.3]} 7... c4 {[%clk 0:04:43.8]} 8. Qc2 {[%clk 0:03:58.4]}
8... e6 {[%clk 0:04:42]} 9. Nbd2 {[%clk 0:03:57.8]} 9... Bd6 {[%clk 0:04:37.2]}
10. Bg3 {[%clk 0:03:55.5]} 10... h5 {[%clk 0:04:35.8]} 11. e4 {[%clk 0:03:45.8]}
11... Bxg3 {[%clk 0:04:25.3]} 12. hxg3 {[%clk 0:03:43.3]} 12... Ng4 {[%clk
0:04:23.2]} 13. exd5 {[%clk 0:03:25.7]} 13... exd5 {[%clk 0:04:18.9]} 14. O-O-O
{[%clk 0:03:18.4]} 14... Nxf2 {[%clk 0:04:14.4]} 15. Rde1+ {[%clk 0:03:11.2]}
15... Kd7 {[%clk 0:04:12.7]} 16. Rhf1 {[%clk 0:03:06.6]} 16... Nd3+ {[%clk
0:04:09.5]} 17. Kb1 {[%clk 0:03:00.3]} 17... Nxe1 {[%clk 0:04:04.4]} 18. Rxe1
{[%clk 0:03:00.2]} 18... Re8 {[%clk 0:04:03.4]} 19. Qf5+ {[%clk 0:02:56.4]}
19... Kc7 {[%clk 0:04:02.1]} 20. Qf4+ {[%clk 0:02:49]} 20... Kb6 {[%clk
0:04:00.6]} 21. b3 {[%clk 0:02:28.9]} 21... Rxe1+ {[%clk 0:03:56.3]} 22. Nxe1
{[%clk 0:02:28.8]} 22... Qe7 {[%clk 0:03:55.6]} 23. Nc2 {[%clk 0:02:25.2]} 23...
cxb3 {[%clk 0:03:52.4]} 24. axb3 {[%clk 0:02:25.1]} 24... g5 {[%clk 0:03:46.5]}
25. Qxg5 {[%clk 0:02:19.2]} 25... Qxg5 {[%clk 0:03:44.7]} 0-1

[Event "Live Chess"]
[Site "Chess.com"]
[Date "2023.05.21"]
[Round "-"]
[White "romchyk1219"]
[Black "HD_IN4k"]
[Result "1-0"]
[WhiteElo "620"]
[BlackElo "390"]
[TimeControl "300"]
[EndTime "16:34:23 PDT"]
[Termination "romchyk1219 won by checkmate"]

1. e4 {[%clk 0:04:55.3]} 1... e5 {[%clk 0:04:55.8]} 2. Nf3 {[%clk 0:04:54.7]}
2... f6 {[%clk 0:04:55]} 3. Bc4 {[%clk 0:04:53.6]} 3... Bc5 {[%clk 0:04:51.8]}
4. Nxe5 {[%clk 0:04:52.5]} 4... fxe5 {[%clk 0:04:47.3]} 5. Qh5+ {[%clk
0:04:51.4]} 5... g6 {[%clk 0:04:45.2]} 6. Qxe5+ {[%clk 0:04:47.3]} 6... Be7
{[%clk 0:04:36.7]} 7. Qxh8 {[%clk 0:04:45.4]} 7... Bf6 {[%clk 0:04:35.7]} 8.
Qxg8+ {[%clk 0:04:42.2]} 8... Ke7 {[%clk 0:04:34]} 9. Qf7+ {[%clk 0:04:39.6]}
9... Kd6 {[%clk 0:04:27.5]} 10. Qd5+ {[%clk 0:04:37.4]} 10... Ke7 {[%clk
0:04:26]} 11. Qf7+ {[%clk 0:04:29.6]} 11... Kd6 {[%clk 0:04:24.1]} 12. d4 {[%clk
0:04:26.8]} 12... c5 {[%clk 0:04:18.1]} 13. e5+ {[%clk 0:04:19.9]} 13... Kc7
{[%clk 0:04:15.3]} 14. exf6 {[%clk 0:04:16.1]} 14... Nc6 {[%clk 0:04:08.8]} 15.
Bf4+ {[%clk 0:04:14.5]} 15... Kb6 {[%clk 0:04:02.9]} 16. dxc5+ {[%clk
0:04:02.9]} 16... Kxc5 {[%clk 0:04:01.2]} 17. Qd5+ {[%clk 0:04:00.9]} 17... Kb6
{[%clk 0:03:59.6]} 18. Qb5# {[%clk 0:03:58.7]} 1-0

[Event "Live Chess"]
[Site "Chess.com"]
[Date "2023.05.21"]
[Round "-"]
[White "LutherSullivan"]
[Black "Conradical12"]
[Result "1-0"]
[WhiteElo "2085"]
[BlackElo "1601"]
[TimeControl "300"]
[EndTime "16:34:35 PDT"]
[Termination "LutherSullivan won by resignation"]

1. e4 {[%clk 0:04:58.6]} 1... e5 {[%clk 0:04:59.6]} 2. Nc3 {[%clk 0:04:55.9]}
2... Nc6 {[%clk 0:04:59]} 3. Bc4 {[%clk 0:04:55]} 3... Nf6 {[%clk 0:04:58]} 4.
d3 {[%clk 0:04:53.9]} 4... Bc5 {[%clk 0:04:56.2]} 5. Nf3 {[%clk 0:04:47.6]} 5...
Ng4 {[%clk 0:04:55.2]} 6. O-O {[%clk 0:04:45]} 6... d6 {[%clk 0:04:53.7]} 7. h3
{[%clk 0:04:41.9]} 7... f5 {[%clk 0:04:49.9]} 8. Bg5 {[%clk 0:04:19.3]} 8... Nf6
{[%clk 0:04:47.5]} 9. Nd5 {[%clk 0:04:12.2]} 9... Be6 {[%clk 0:04:40.5]} 10.
exf5 {[%clk 0:04:00.6]} 10... Bxf5 {[%clk 0:04:35.7]} 11. Nh4 {[%clk 0:03:58.2]}
11... Bg6 {[%clk 0:04:33.4]} 12. Bxf6 {[%clk 0:03:33.9]} 12... gxf6 {[%clk
0:04:29.7]} 13. Qg4 {[%clk 0:03:30.4]} 13... Qd7 {[%clk 0:04:12.6]} 14. Nxf6+
{[%clk 0:03:27.5]} 1-0

[Event "Live Chess"]
[Site "Chess.com"]
[Date "2023.05.21"]
[Round "-"]
[White "karimghalambaz"]
[Black "chessfiction"]
[Result "0-1"]
[WhiteElo "1273"]
[BlackElo "2344"]
[TimeControl "300"]
[EndTime "16:34:36 PDT"]
[Termination "chessfiction won on time"]

1. d4 {[%clk 0:04:55]} 1... d5 {[%clk 0:04:59.9]} 2. Bf4 {[%clk 0:04:51.8]} 2...
e5 {[%clk 0:04:59]} 3. dxe5 {[%clk 0:04:50.2]} 3... Nc6 {[%clk 0:04:58.5]} 4.
Nf3 {[%clk 0:04:45.2]} 4... Bg4 {[%clk 0:04:57.6]} 5. e3 {[%clk 0:04:36.2]} 5...
f6 {[%clk 0:04:56.7]} 6. exf6 {[%clk 0:04:34]} 6... Nxf6 {[%clk 0:04:56.6]} 7.
Be2 {[%clk 0:04:30.3]} 7... Bd6 {[%clk 0:04:50.6]} 8. Bxd6 {[%clk 0:04:21.8]}
8... Qxd6 {[%clk 0:04:50.5]} 9. O-O {[%clk 0:04:14.9]} 9... O-O {[%clk 0:04:49]}
10. h3 {[%clk 0:04:13.6]} 10... Bh5 {[%clk 0:04:47.3]} 11. c3 {[%clk 0:04:03.3]}
11... Ne4 {[%clk 0:04:45.2]} 12. Nbd2 {[%clk 0:03:59.5]} 12... Rae8 {[%clk
0:04:21.2]} 13. Nxe4 {[%clk 0:03:53]} 13... Rxe4 {[%clk 0:04:21.1]} 14. Nd4
{[%clk 0:03:46.3]} 14... Bxe2 {[%clk 0:04:15.2]} 15. Qxe2 {[%clk 0:03:41.1]}
15... Ne5 {[%clk 0:04:13.3]} 16. f3 {[%clk 0:03:24.7]} 16... Rh4 {[%clk
0:04:07.7]} 17. Qf2 {[%clk 0:03:06.6]} 17... Rh6 {[%clk 0:04:03.1]} 18. f4
{[%clk 0:02:53.3]} 18... Nc4 {[%clk 0:03:45.3]} 19. b3 {[%clk 0:02:46.9]} 19...
Nb6 {[%clk 0:03:40.1]} 20. Rae1 {[%clk 0:02:37.2]} 20... c5 {[%clk 0:03:35.3]}
21. Nf3 {[%clk 0:02:30]} 21... Re6 {[%clk 0:03:32]} 22. Ne5 {[%clk 0:02:27.1]}
22... Qe7 {[%clk 0:03:24.5]} 23. Qg3 {[%clk 0:02:09.1]} 23... Nd7 {[%clk
0:03:17.1]} 24. Ng4 {[%clk 0:01:54.6]} 24... h5 {[%clk 0:03:12.6]} 25. Nh2
{[%clk 0:01:23.6]} 25... Nf6 {[%clk 0:03:07.8]} 26. f5 {[%clk 0:01:19.2]} 26...
Re4 {[%clk 0:03:05.1]} 27. Rf3 {[%clk 0:01:08.6]} 27... d4 {[%clk 0:03:03.5]}
28. cxd4 {[%clk 0:01:05.4]} 28... cxd4 {[%clk 0:03:01.8]} 29. h4 {[%clk
0:00:40.1]} 29... Re8 {[%clk 0:02:56.3]} 30. Nf1 {[%clk 0:00:25.2]} 30... dxe3
{[%clk 0:02:53.5]} 31. Rfxe3 {[%clk 0:00:20.7]} 31... Qc5 {[%clk 0:02:49.4]} 32.
Kh1 {[%clk 0:00:14.7]} 32... Qxf5 {[%clk 0:02:45.6]} 33. Rxe4 {[%clk 0:00:12.5]}
33... Rxe4 {[%clk 0:02:45.5]} 34. Rxe4 {[%clk 0:00:10.6]} 34... Nxe4 {[%clk
0:02:45.4]} 35. Qb8+ {[%clk 0:00:08.5]} 35... Kh7 {[%clk 0:02:43.9]} 36. Qxb7
{[%clk 0:00:07]} 36... Qxf1+ {[%clk 0:02:42.4]} 37. Kh2 {[%clk 0:00:03.9]} 37...
Qf4+ {[%clk 0:02:42.3]} 38. Kh1 {[%clk 0:00:01.7]} 38... Nf2+ {[%clk 0:02:41.2]}
39. Kg1 {[%clk 0:00:00.2]} 39... Nh3+ {[%clk 0:02:41.1]} 0-1

[Event "Live Chess"]
[Site "Chess.com"]
[Date "2023.05.21"]
[Round "-"]
[White "Brooms1989"]
[Black "AbilifyXL"]
[Result "1-0"]
[WhiteElo "1106"]
[BlackElo "1941"]
[TimeControl "300"]
[EndTime "16:34:54 PDT"]
[Termination "Brooms1989 won by resignation"]

1. e4 {[%clk 0:04:55]} 1... d5 {[%clk 0:04:59.9]} 2. exd5 {[%clk 0:04:53.7]}
2... Qxd5 {[%clk 0:04:56.2]} 3. Nc3 {[%clk 0:04:53.1]} 3... Qa5 {[%clk
0:04:55.5]} 4. d4 {[%clk 0:04:49.4]} 4... c6 {[%clk 0:04:54.8]} 5. Nf3 {[%clk
0:04:48.3]} 5... Nf6 {[%clk 0:04:54]} 6. Bd2 {[%clk 0:04:47.5]} 6... Bg4 {[%clk
0:04:53.3]} 7. Ne4 {[%clk 0:04:45.7]} 7... Qc7 {[%clk 0:04:52]} 8. Nxf6+ {[%clk
0:04:43.8]} 8... exf6 {[%clk 0:04:51.9]} 9. Qe2+ {[%clk 0:04:41.5]} 9... Be7
{[%clk 0:04:50.8]} 10. h3 {[%clk 0:04:39.9]} 10... Bf5 {[%clk 0:04:48.9]} 11.
Nh4 {[%clk 0:04:31.6]} 11... Bg6 {[%clk 0:04:47.8]} 12. Nxg6 {[%clk 0:04:30.4]}
12... hxg6 {[%clk 0:04:47.7]} 13. O-O-O {[%clk 0:04:27.6]} 13... O-O {[%clk
0:04:46.5]} 14. h4 {[%clk 0:04:21.6]} 14... Na6 {[%clk 0:04:42.7]} 15. h5 {[%clk
0:04:20.2]} 15... g5 {[%clk 0:04:40]} 16. h6 {[%clk 0:04:19.2]} 16... g6 {[%clk
0:04:38.9]} 17. h7+ {[%clk 0:04:17.4]} 17... Kg7 {[%clk 0:04:36.5]} 18. Qe3
{[%clk 0:04:08.1]} 18... Rh8 {[%clk 0:04:32.8]} 19. Qh3 {[%clk 0:04:04.8]} 19...
Kf8 {[%clk 0:04:28.4]} 20. Qh6+ {[%clk 0:04:00.5]} 20... Ke8 {[%clk 0:04:27.1]}
21. Qg7 {[%clk 0:03:56.1]} 21... Kd7 {[%clk 0:04:25.1]} 22. d5 {[%clk
0:03:51.8]} 22... Raf8 {[%clk 0:04:14]} 23. Be3 {[%clk 0:03:36.8]} 23... c5
{[%clk 0:04:11.1]} 24. d6 {[%clk 0:03:17]} 24... Bxd6 {[%clk 0:04:07.8]} 25.
Qxf6 {[%clk 0:03:14.5]} 25... Nb4 {[%clk 0:03:52.6]} 26. Bb5+ {[%clk 0:03:09]}
26... Nc6 {[%clk 0:03:51]} 27. Bxc5 {[%clk 0:03:01.3]} 1-0

[Event "Live Chess"]
[Site "Chess.com"]
[Date "2023.05.21"]
[Round "-"]
[White "wadsy27"]
[Black "xx_blindpuffin_xx"]
[Result "1-0"]
[WhiteElo "2573"]
[BlackElo "2197"]
[TimeControl "300"]
[EndTime "16:35:05 PDT"]
[Termination "wadsy27 won by resignation"]

1. c4 {[%clk 0:04:58.1]} 1... e6 {[%clk 0:04:49.9]} 2. g3 {[%clk 0:04:56.8]}
2... d5 {[%clk 0:04:48.9]} 3. Bg2 {[%clk 0:04:55.8]} 3... c6 {[%clk 0:04:44]} 4.
Nf3 {[%clk 0:04:54.1]} 4... Nf6 {[%clk 0:04:41.6]} 5. b3 {[%clk 0:04:52.4]} 5...
Be7 {[%clk 0:04:41]} 6. Bb2 {[%clk 0:04:51.7]} 6... O-O {[%clk 0:04:40.4]} 7.
O-O {[%clk 0:04:51.1]} 7... b6 {[%clk 0:04:39.8]} 8. d4 {[%clk 0:04:50.5]} 8...
Bb7 {[%clk 0:04:37.2]} 9. Nc3 {[%clk 0:04:48]} 9... Nbd7 {[%clk 0:04:34.9]} 10.
Nd2 {[%clk 0:04:46]} 10... c5 {[%clk 0:04:29.7]} 11. e3 {[%clk 0:04:37.7]} 11...
e5 {[%clk 0:04:05.9]} 12. Nxd5 {[%clk 0:04:28.9]} 12... Nxd5 {[%clk 0:04:04.4]}
13. cxd5 {[%clk 0:04:28.8]} 13... exd4 {[%clk 0:04:01.6]} 14. exd4 {[%clk
0:04:27.9]} 14... Bf6 {[%clk 0:03:31.8]} 15. Ne4 {[%clk 0:04:25.6]} 15... Bxd5
{[%clk 0:03:15.8]} 16. Nxf6+ {[%clk 0:04:22.8]} 16... Nxf6 {[%clk 0:03:13.6]}
17. dxc5 {[%clk 0:04:22.3]} 17... Bxg2 {[%clk 0:03:12.1]} 18. Qxd8 {[%clk
0:04:20.8]} 18... Rfxd8 {[%clk 0:03:08.9]} 19. Kxg2 {[%clk 0:04:20.3]} 19...
bxc5 {[%clk 0:03:06.4]} 20. Bxf6 {[%clk 0:04:19.4]} 20... gxf6 {[%clk
0:03:06.3]} 21. Rfc1 {[%clk 0:04:17.8]} 21... Rd5 {[%clk 0:02:42.9]} 22. Rc2
{[%clk 0:04:15.4]} 22... a5 {[%clk 0:02:34.3]} 23. Rac1 {[%clk 0:04:11.2]} 23...
Rc8 {[%clk 0:02:25.9]} 24. Rc4 {[%clk 0:04:10.3]} 24... Kg7 {[%clk 0:02:14.3]}
25. R1c2 {[%clk 0:04:07.2]} 25... f5 {[%clk 0:02:09.9]} 26. h4 {[%clk
0:04:05.9]} 26... Kf6 {[%clk 0:02:09.1]} 27. a3 {[%clk 0:04:02.2]} 27... Ke6
{[%clk 0:01:58]} 28. b4 {[%clk 0:04:01]} 28... axb4 {[%clk 0:01:57.1]} 29. axb4
{[%clk 0:04:00.2]} 29... Rb8 {[%clk 0:01:56.4]} 30. bxc5 {[%clk 0:03:58.6]}
30... Rc8 {[%clk 0:01:55.9]} 31. c6 {[%clk 0:03:57.8]} 31... Rd6 {[%clk
0:01:51.7]} 32. Kf3 {[%clk 0:03:55.1]} 32... Kf6 {[%clk 0:01:49.9]} 33. Kf4
{[%clk 0:03:52.9]} 33... Re6 {[%clk 0:01:48.1]} 34. c7 {[%clk 0:03:51.5]} 34...
Ra6 {[%clk 0:01:44.1]} 35. Rc6+ {[%clk 0:03:50.5]} 35... Rxc6 {[%clk 0:01:42]}
36. Rxc6+ {[%clk 0:03:50.4]} 1-0

[Event "Live Chess"]
[Site "Chess.com"]
[Date "2023.05.21"]
[Round "-"]
[White "birdseed45"]
[Black "Olisingapore"]
[Result "1-0"]
[WhiteElo "1863"]
[BlackElo "1824"]
[TimeControl "300"]
[EndTime "16:35:10 PDT"]
[Termination "birdseed45 won by resignation"]

1. e4 {[%clk 0:04:56.6]} 1... c5 {[%clk 0:04:59.4]} 2. Nf3 {[%clk 0:04:54.6]}
2... d6 {[%clk 0:04:58.9]} 3. d4 {[%clk 0:04:53.6]} 3... cxd4 {[%clk 0:04:58.8]}
4. Nxd4 {[%clk 0:04:52.2]} 4... Nf6 {[%clk 0:04:58.5]} 5. Nc3 {[%clk 0:04:50.3]}
5... a6 {[%clk 0:04:58.1]} 6. Be3 {[%clk 0:04:48.5]} 6... e5 {[%clk 0:04:56.5]}
7. Nf3 {[%clk 0:04:45.2]} 7... Be7 {[%clk 0:04:51.2]} 8. Nd5 {[%clk 0:04:43.1]}
8... Be6 {[%clk 0:04:45]} 9. Bb6 {[%clk 0:04:41.1]} 9... Qc8 {[%clk 0:04:42]}
10. Nc7+ {[%clk 0:04:37.6]} 10... Kf8 {[%clk 0:04:40.5]} 11. Nxa8 {[%clk
0:04:35.1]} 11... Nbd7 {[%clk 0:04:40.1]} 12. Nc7 {[%clk 0:04:20.9]} 12... Nxb6
{[%clk 0:04:28.1]} 13. Nxe6+ {[%clk 0:04:19.2]} 13... Qxe6 {[%clk 0:04:26.4]}
14. Bd3 {[%clk 0:04:16.9]} 14... Na4 {[%clk 0:04:22.1]} 15. O-O {[%clk 0:04:12]}
15... Qd7 {[%clk 0:04:18.3]} 16. b3 {[%clk 0:03:54.9]} 16... Nc5 {[%clk
0:04:16.2]} 17. Qd2 {[%clk 0:03:51.6]} 17... Ncxe4 {[%clk 0:03:49.7]} 18. Bxe4
{[%clk 0:03:47.2]} 18... Nxe4 {[%clk 0:03:49.6]} 19. Qe3 {[%clk 0:03:43.8]}
19... f5 {[%clk 0:03:46.9]} 20. Rfd1 {[%clk 0:03:39.4]} 20... Qe6 {[%clk
0:03:40.9]} 21. Qb6 {[%clk 0:03:34.2]} 21... Qc8 {[%clk 0:03:15.5]} 22. c4
{[%clk 0:03:25.4]} 22... Bd8 {[%clk 0:02:55]} 23. Qb4 {[%clk 0:03:18.6]} 23...
a5 {[%clk 0:02:46.3]} 24. Qa3 {[%clk 0:03:15.6]} 24... Qa8 {[%clk 0:02:31.7]}
25. Nxe5 {[%clk 0:03:09.9]} 25... Qa7 {[%clk 0:02:24.8]} 26. Nd3 {[%clk
0:02:58.7]} 26... Bh4 {[%clk 0:02:14.4]} 27. g3 {[%clk 0:02:55.3]} 27... Bf6
{[%clk 0:02:05.2]} 28. Rac1 {[%clk 0:02:48.1]} 28... Bd4 {[%clk 0:01:47.7]} 29.
Rc2 {[%clk 0:02:32.6]} 29... Kf7 {[%clk 0:01:41]} 30. Rf1 {[%clk 0:02:22.5]}
30... h5 {[%clk 0:01:32.7]} 31. Qa4 {[%clk 0:02:16.7]} 31... b6 {[%clk
0:01:29.3]} 32. Qc6 {[%clk 0:02:07.4]} 32... Be5 {[%clk 0:01:26.9]} 33. Nxe5+
{[%clk 0:02:01.2]} 33... dxe5 {[%clk 0:01:25.8]} 34. Qd5+ {[%clk 0:01:57.3]}
34... Kf6 {[%clk 0:01:23.7]} 35. Re2 {[%clk 0:01:46.6]} 35... h4 {[%clk
0:01:11.9]} 36. Kg2 {[%clk 0:01:41.1]} 36... h3+ {[%clk 0:01:05.3]} 37. Kg1
{[%clk 0:01:36.1]} 37... Qe7 {[%clk 0:01:04.2]} 38. f3 {[%clk 0:01:25.6]} 38...
Nc3 {[%clk 0:01:01.3]} 39. Qc6+ {[%clk 0:01:21.5]} 39... Kg5 {[%clk 0:00:57.3]}
40. f4+ {[%clk 0:01:16]} 40... exf4 {[%clk 0:00:55.7]} 41. Rxe7 {[%clk
0:01:12.1]} 41... Rd8 {[%clk 0:00:50.8]} 42. Rxg7+ {[%clk 0:01:09.3]} 1-0

[Event "Live Chess"]
[Site "Chess.com"]
[Date "2023.05.21"]
[Round "-"]
[White "KeithArkell"]
[Black "Pablo_dmp"]
[Result "1-0"]
[WhiteElo "2612"]
[BlackElo "1898"]
[TimeControl "300"]
[EndTime "16:35:26 PDT"]
[Termination "KeithArkell won by resignation"]

1. d4 {[%clk 0:04:58.2]} 1... Nf6 {[%clk 0:04:59.3]} 2. Nf3 {[%clk 0:04:57.4]}
2... e6 {[%clk 0:04:58.9]} 3. c4 {[%clk 0:04:55.4]} 3... Bb4+ {[%clk 0:04:57.8]}
4. Bd2 {[%clk 0:04:54.6]} 4... a5 {[%clk 0:04:57.4]} 5. g3 {[%clk 0:04:53.4]}
5... b6 {[%clk 0:04:56.2]} 6. Bg2 {[%clk 0:04:52.7]} 6... Bb7 {[%clk 0:04:55.7]}
7. O-O {[%clk 0:04:51.8]} 7... O-O {[%clk 0:04:54]} 8. Nh4 {[%clk 0:04:51.1]}
8... Bxg2 {[%clk 0:04:52.7]} 9. Nxg2 {[%clk 0:04:51]} 9... d5 {[%clk 0:04:47.3]}
10. cxd5 {[%clk 0:04:49.5]} 10... Qxd5 {[%clk 0:04:43.7]} 11. Bc3 {[%clk
0:04:44.9]} 11... Nc6 {[%clk 0:04:41.6]} 12. Nf4 {[%clk 0:04:43.3]} 12... Qd6
{[%clk 0:04:39.6]} 13. e3 {[%clk 0:04:41.8]} 13... Nd5 {[%clk 0:04:29.4]} 14.
Nxd5 {[%clk 0:04:37]} 14... Qxd5 {[%clk 0:04:29.3]} 15. Nd2 {[%clk 0:04:35.4]}
15... Qf5 {[%clk 0:04:13.8]} 16. Qf3 {[%clk 0:04:32.5]} 16... Qxf3 {[%clk
0:04:12.1]} 17. Nxf3 {[%clk 0:04:32.4]} 17... Rad8 {[%clk 0:04:05.5]} 18. Rac1
{[%clk 0:04:31.4]} 18... Bxc3 {[%clk 0:04:00.6]} 19. Rxc3 {[%clk 0:04:30.1]}
19... Rd6 {[%clk 0:03:58.2]} 20. a3 {[%clk 0:04:27.9]} 20... h6 {[%clk
0:03:32.2]} 21. Rfc1 {[%clk 0:04:26.8]} 21... Ne7 {[%clk 0:03:27]} 22. Rxc7
{[%clk 0:04:25.4]} 22... Nd5 {[%clk 0:03:24.7]} 23. Rb7 {[%clk 0:04:23.3]} 23...
Rfd8 {[%clk 0:03:18.4]} 24. Ne5 {[%clk 0:04:22.2]} 24... Rf8 {[%clk 0:03:03.7]}
25. Rc6 {[%clk 0:04:19.4]} 25... Rxc6 {[%clk 0:02:57.6]} 26. Nxc6 {[%clk
0:04:19.3]} 26... f5 {[%clk 0:02:52.4]} 27. Ne7+ {[%clk 0:04:16.3]} 27... Nxe7
{[%clk 0:02:51.3]} 28. Rxe7 {[%clk 0:04:15.3]} 28... Rf6 {[%clk 0:02:48.8]} 29.
Rb7 {[%clk 0:04:14.1]} 1-0

[Event "Live Chess"]
[Site "Chess.com"]
[Date "2023.05.21"]
[Round "-"]
[White "luckywookie"]
[Black "manthanit"]
[Result "1-0"]
[WhiteElo "767"]
[BlackElo "1039"]
[TimeControl "300"]
[EndTime "16:35:55 PDT"]
[Termination "luckywookie won by checkmate"]

1. e4 {[%clk 0:04:57.1]} 1... e6 {[%clk 0:04:59.6]} 2. Nf3 {[%clk 0:04:55.5]}
2... d5 {[%clk 0:04:59.2]} 3. d3 {[%clk 0:04:47]} 3... dxe4 {[%clk 0:04:58]} 4.
dxe4 {[%clk 0:04:45.5]} 4... Qxd1+ {[%clk 0:04:57.6]} 5. Kxd1 {[%clk 0:04:44.7]}
5... Nf6 {[%clk 0:04:57.1]} 6. Nc3 {[%clk 0:04:40.8]} 6... b6 {[%clk 0:04:55]}
7. Bf4 {[%clk 0:04:37.6]} 7... Bd6 {[%clk 0:04:48.2]} 8. e5 {[%clk 0:04:33.9]}
8... Bxe5 {[%clk 0:04:35.9]} 9. Bxe5 {[%clk 0:04:32.5]} 9... Ng4 {[%clk
0:04:35.4]} 10. Bxg7 {[%clk 0:04:28.9]} 10... Rg8 {[%clk 0:04:32.6]} 11. Bd4
{[%clk 0:04:24.9]} 11... c5 {[%clk 0:04:28.9]} 12. Be3 {[%clk 0:04:20.4]} 12...
Bb7 {[%clk 0:04:18.9]} 13. Bb5+ {[%clk 0:04:18.9]} 13... Bc6 {[%clk 0:04:16.5]}
14. Bd3 {[%clk 0:04:05.4]} 14... h6 {[%clk 0:04:13.7]} 15. h3 {[%clk 0:03:56.8]}
15... Nxe3+ {[%clk 0:04:09.8]} 16. fxe3 {[%clk 0:03:55.5]} 16... Rxg2 {[%clk
0:04:08.3]} 17. Ne5 {[%clk 0:03:50.3]} 17... Bf3+ {[%clk 0:03:54.3]} 18. Nxf3
{[%clk 0:03:47.4]} 18... Nc6 {[%clk 0:03:50.3]} 19. Bb5 {[%clk 0:03:43.7]} 19...
Rc8 {[%clk 0:03:47.5]} 20. Ne5 {[%clk 0:03:41.5]} 20... Rd8+ {[%clk 0:03:40.5]}
21. Nd3 {[%clk 0:03:26.8]} 21... Rd6 {[%clk 0:03:36.2]} 22. Ne4 {[%clk
0:03:20.6]} 22... Rd8 {[%clk 0:03:17.3]} 23. Bxc6+ {[%clk 0:03:15.7]} 23... Ke7
{[%clk 0:03:16.1]} 24. a4 {[%clk 0:02:50.3]} 24... c4 {[%clk 0:03:15]} 25. Ra3
{[%clk 0:02:31.4]} 25... cxd3 {[%clk 0:03:13.7]} 26. Rxd3 {[%clk 0:02:30.3]}
26... Rc8 {[%clk 0:03:03.3]} 27. Rd7+ {[%clk 0:02:22.7]} 27... Kf8 {[%clk
0:03:02.2]} 28. Rd6 {[%clk 0:02:01.6]} 28... Ke7 {[%clk 0:02:57.3]} 29. b4
{[%clk 0:01:48.4]} 29... f5 {[%clk 0:02:56]} 30. Rd7+ {[%clk 0:01:42.8]} 30...
Ke8 {[%clk 0:02:52.6]} 31. Nf6+ {[%clk 0:01:37.6]} 31... Kf8 {[%clk 0:02:49.6]}
32. Nh7+ {[%clk 0:01:30.3]} 32... Kg8 {[%clk 0:02:42.5]} 33. Nf6+ {[%clk
0:01:22]} 33... Kf8 {[%clk 0:02:41.4]} 34. Re1 {[%clk 0:01:17.2]} 34... Rxc6
{[%clk 0:02:36.8]} 35. Re2 {[%clk 0:01:16.1]} 35... Rg1+ {[%clk 0:02:30.1]} 36.
Re1 {[%clk 0:01:11.6]} 36... Rg2 {[%clk 0:02:27.7]} 37. Re2 {[%clk 0:01:10.7]}
37... Rg1+ {[%clk 0:02:26.5]} 38. Re1 {[%clk 0:01:09.5]} 38... Rg3 {[%clk
0:02:15.9]} 39. Re2 {[%clk 0:00:49.2]} 39... Rxh3 {[%clk 0:02:14.4]} 40. Red2
{[%clk 0:00:46.8]} 40... Rh1+ {[%clk 0:02:12.4]} 41. Ke2 {[%clk 0:00:45.8]}
41... Rh2+ {[%clk 0:02:10.6]} 42. Kd3 {[%clk 0:00:41]} 42... Rxd2+ {[%clk
0:01:55.7]} 43. Kxd2 {[%clk 0:00:39.1]} 43... a5 {[%clk 0:01:54.8]} 44. b5
{[%clk 0:00:33]} 44... Rc4 {[%clk 0:01:49.4]} 45. c3 {[%clk 0:00:31.2]} 45...
Rxa4 {[%clk 0:01:47.7]} 46. Nh5 {[%clk 0:00:27.1]} 46... Ke8 {[%clk 0:01:42.3]}
47. Rh7 {[%clk 0:00:22.1]} 47... Ra2+ {[%clk 0:01:25]} 48. Kd3 {[%clk
0:00:21.4]} 48... Ra1 {[%clk 0:01:23.7]} 49. Kd4 {[%clk 0:00:19.5]} 49... Rd1+
{[%clk 0:01:22.5]} 50. Ke5 {[%clk 0:00:18.7]} 50... Re1 {[%clk 0:01:20.7]} 51.
e4 {[%clk 0:00:15.3]} 51... fxe4 {[%clk 0:01:18.7]} 52. Kxe6 {[%clk 0:00:14.5]}
52... e3 {[%clk 0:01:17.2]} 53. Rh8# {[%clk 0:00:13.7]} 1-0